[Event "Titled Tuesday Blitz April 19 Late 2022"]
[White "Burke, Paul"]
[Black "Martic, Ivan"]
[WhiteFideId "2605767"]
[BlackFideId "929301"]
[WhiteElo "1882"]
[BlackElo "2317"]
[Result "0-1"]
[Round "01"]
[TimeControl "180+1"]
[Date "2022.04.19"]
[WhiteClock "0:00:02"]
[BlackClock "0:00:11"]

1. e4 {[%clk 0:03:00]}  c5 {[%clk 0:02:59]} 2. d4 {[%clk 0:02:59]}  cxd4 {[%clk 0:02:58]} 3. c3 {[%clk 0:02:59]}  Nf6 {[%clk 0:02:58]} 4. e5 {[%clk 0:02:58]}  Nd5 {[%clk 0:02:58]} 5. Nf3 {[%clk 0:02:58]}  e6 {[%clk 0:02:56]} 6. Bd3 {[%clk 0:02:56]}  d6 {[%clk 0:02:53]} 7. cxd4 {[%clk 0:02:54]}  Nc6 {[%clk 0:02:48]} 8. O-O {[%clk 0:02:52]}  Be7 {[%clk 0:02:42]} 9. Nc3 {[%clk 0:02:51]}  Nxc3 {[%clk 0:02:42]} 10. bxc3 {[%clk 0:02:50]}  dxe5 {[%clk 0:02:42]} 11. dxe5 {[%clk 0:02:50]}  Qa5 {[%clk 0:02:38]} 12. Bf4 {[%clk 0:02:45]}  O-O {[%clk 0:02:33]} 13. Qe2 {[%clk 0:02:34]}  Qa4 {[%clk 0:02:17]} 14. Bd2 {[%clk 0:02:19]}  Rd8 {[%clk 0:02:11]} 15. Rfd1 {[%clk 0:02:04]}  Bd7 {[%clk 0:02:04]} 16. c4 {[%clk 0:01:56]}  Be8 {[%clk 0:01:56]} 17. Qe4 {[%clk 0:01:40]}  g6 {[%clk 0:01:53]} 18. Bh6 {[%clk 0:01:27]}  Nb4 {[%clk 0:01:43]} 19. Be2 {[%clk 0:01:19]}  Bc6 {[%clk 0:01:32]} 20. Qf4 {[%clk 0:01:14]}  Qc2 {[%clk 0:01:20]} 21. Rxd8+ {[%clk 0:01:02]}  Rxd8 {[%clk 0:01:21]} 22. Re1 {[%clk 0:01:01]}  Qc3 {[%clk 0:00:46]} 23. Rc1 {[%clk 0:00:49]}  Qb2 {[%clk 0:00:39]} 24. Re1 {[%clk 0:00:42]}  Bxf3 {[%clk 0:00:32]} 25. Bxf3 {[%clk 0:00:39]}  Nd3 {[%clk 0:00:27]} 26. Qe3 {[%clk 0:00:26]}  Nxe1 {[%clk 0:00:22]} 27. Qxe1 {[%clk 0:00:26]}  Qb4 {[%clk 0:00:19]} 28. Qf1 {[%clk 0:00:23]}  Qa3 {[%clk 0:00:17]} 29. Bxb7 {[%clk 0:00:17]}  Qxa2 {[%clk 0:00:16]} 30. Bf3 {[%clk 0:00:15]}  Qc2 {[%clk 0:00:15]} 31. h3 {[%clk 0:00:13]}  Bc5 {[%clk 0:00:14]} 32. Bf4 {[%clk 0:00:12]}  Rb8 {[%clk 0:00:13]} 33. Kh2 {[%clk 0:00:10]}  Qxf2 {[%clk 0:00:12]} 34. Qd1 {[%clk 0:00:07]}  Qd4 {[%clk 0:00:12]} 35. Qxd4 {[%clk 0:00:04]}  Bxd4 {[%clk 0:00:13]} 36. Kg3 {[%clk 0:00:03]}  Rc8 {[%clk 0:00:13]} 37. Kg4 {[%clk 0:00:03]}  Rxc4 {[%clk 0:00:11]} 38. Kg3 {[%clk 0:00:02]}  Rb4 {[%clk 0:00:11]} 0-1


[Site "https://www.chess.com"]

[Event "Titled Tuesday Blitz April 19 Late 2022"]
[White "Chigaev, Maksim"]
[Black "Urbina Perez, Juan Antonio"]
[WhiteFideId "4108116"]
[BlackFideId "2217368"]
[WhiteElo "2478"]
[BlackElo "2192"]
[Result "1-0"]
[Round "01"]
[TimeControl "180+1"]
[Date "2022.04.19"]
[WhiteClock "0:01:17"]
[BlackClock "0:00:14"]

1. e4 {[%clk 0:03:00]}  c5 {[%clk 0:02:58]} 2. Nf3 {[%clk 0:03:01]}  d6 {[%clk 0:02:59]} 3. d4 {[%clk 0:03:00]}  cxd4 {[%clk 0:02:59]} 4. Nxd4 {[%clk 0:03:00]}  Nf6 {[%clk 0:03:00]} 5. Nc3 {[%clk 0:03:01]}  Nc6 {[%clk 0:03:01]} 6. Bg5 {[%clk 0:03:00]}  a6 {[%clk 0:03:00]} 7. Qd3 {[%clk 0:02:56]}  e6 {[%clk 0:02:58]} 8. O-O-O {[%clk 0:02:55]}  Bd7 {[%clk 0:02:57]} 9. Qg3 {[%clk 0:02:53]}  Nxd4 {[%clk 0:02:52]} 10. Rxd4 {[%clk 0:02:54]}  Qc7 {[%clk 0:02:51]} 11. Rc4 {[%clk 0:02:49]}  Qb6 {[%clk 0:02:47]} 12. Be2 {[%clk 0:02:40]}  h6 {[%clk 0:02:39]} 13. Be3 {[%clk 0:02:38]}  Qd8 {[%clk 0:02:39]} 14. Rd1 {[%clk 0:02:28]}  Rc8 {[%clk 0:02:36]} 15. f3 {[%clk 0:02:23]}  b5 {[%clk 0:02:32]} 16. Rxc8 {[%clk 0:02:20]}  Qxc8 {[%clk 0:02:33]} 17. a3 {[%clk 0:02:18]}  Qc7 {[%clk 0:02:28]} 18. Bd4 {[%clk 0:02:16]}  Nh5 {[%clk 0:02:22]} 19. Qh4 {[%clk 0:02:07]}  Nf6 {[%clk 0:02:03]} 20. g4 {[%clk 0:02:05]}  Rg8 {[%clk 0:01:50]} 21. Qg3 {[%clk 0:02:01]}  Be7 {[%clk 0:01:47]} 22. h4 {[%clk 0:01:59]}  Kd8 {[%clk 0:01:26]} 23. e5 {[%clk 0:01:56]}  Ne8 {[%clk 0:01:17]} 24. f4 {[%clk 0:01:55]}  Kc8 {[%clk 0:01:16]} 25. g5 {[%clk 0:01:53]}  hxg5 {[%clk 0:01:15]} 26. hxg5 {[%clk 0:01:54]}  g6 {[%clk 0:01:14]} 27. Rd3 {[%clk 0:01:51]}  Kb8 {[%clk 0:01:07]} 28. Ne4 {[%clk 0:01:47]}  d5 {[%clk 0:01:04]} 29. Rc3 {[%clk 0:01:46]}  Qb7 {[%clk 0:01:03]} 30. Nc5 {[%clk 0:01:46]}  Qc6 {[%clk 0:00:46]} 31. a4 {[%clk 0:01:42]}  Nc7 {[%clk 0:00:20]} 32. axb5 {[%clk 0:01:31]}  Nxb5 {[%clk 0:00:21]} 33. Bxb5 {[%clk 0:01:29]}  axb5 {[%clk 0:00:19]} 34. Qd3 {[%clk 0:01:28]}  Bxc5 {[%clk 0:00:17]} 35. Rxc5 {[%clk 0:01:28]}  Qb7 {[%clk 0:00:17]} 36. Qh3 {[%clk 0:01:25]}  Rc8 {[%clk 0:00:17]} 37. b4 {[%clk 0:01:18]}  Rxc5 {[%clk 0:00:17]} 38. Bxc5 {[%clk 0:01:19]}  Qc8 {[%clk 0:00:16]} 39. Kd2 {[%clk 0:01:17]}  Qe8 {[%clk 0:00:16]} 40. Qa3 {[%clk 0:01:17]}  Bc6 {[%clk 0:00:13]} 41. Qa7+ {[%clk 0:01:16]}  Kc8 {[%clk 0:00:14]} 42. Bd6 {[%clk 0:01:17]} 1-0


[Site "https://www.chess.com"]

[Event "Titled Tuesday Blitz April 19 Late 2022"]
[White "Demchenko, Anton"]
[Black "Kovanova, Baira"]
[WhiteFideId "4160258"]
[BlackFideId "4164083"]
[WhiteElo "2539"]
[BlackElo "2190"]
[Result "0-1"]
[Round "01"]
[TimeControl "180+1"]
[Date "2022.04.19"]
[WhiteClock "0:02:46"]
[BlackClock "0:01:26"]

1. e4 {[%clk 0:03:00]}  e5 {[%clk 0:02:59]} 2. Nf3 {[%clk 0:03:01]}  Nc6 {[%clk 0:02:59]} 3. Bc4 {[%clk 0:03:01]}  Bc5 {[%clk 0:02:59]} 4. d3 {[%clk 0:03:01]}  Nf6 {[%clk 0:02:58]} 5. Bg5 {[%clk 0:03:02]}  d6 {[%clk 0:02:56]} 6. c3 {[%clk 0:02:59]}  a6 {[%clk 0:02:55]} 7. Nbd2 {[%clk 0:02:58]}  h6 {[%clk 0:02:54]} 8. Bh4 {[%clk 0:02:58]}  Ba7 {[%clk 0:02:52]} 9. O-O {[%clk 0:02:58]}  Be6 {[%clk 0:02:50]} 10. b4 {[%clk 0:02:56]}  g5 {[%clk 0:02:25]} 11. Bg3 {[%clk 0:02:56]}  Qe7 {[%clk 0:02:16]} 12. a4 {[%clk 0:02:55]}  O-O {[%clk 0:01:58]} 13. Re1 {[%clk 0:02:52]}  Rad8 {[%clk 0:01:31]} 14. b5 {[%clk 0:02:46]}  Nb8 {[%clk 0:01:26]} 0-1


[Site "https://www.chess.com"]

[Event "Titled Tuesday Blitz April 19 Late 2022"]
[White "Dilmukhametov, Artur"]
[Black "Wieczorek, Oskar"]
[WhiteFideId "24179922"]
[BlackFideId "1133950"]
[WhiteElo "2244"]
[BlackElo "2319"]
[Result "0-1"]
[Round "01"]
[TimeControl "180+1"]
[Date "2022.04.19"]
[WhiteClock "0:00:04"]
[BlackClock "0:00:06"]

1. e4 {[%clk 0:02:58]}  e6 {[%clk 0:02:59]} 2. d4 {[%clk 0:02:51]}  d5 {[%clk 0:02:59]} 3. Nd2 {[%clk 0:02:52]}  c5 {[%clk 0:02:59]} 4. exd5 {[%clk 0:02:50]}  exd5 {[%clk 0:03:00]} 5. Ngf3 {[%clk 0:02:50]}  Nf6 {[%clk 0:03:00]} 6. Bb5+ {[%clk 0:02:48]}  Bd7 {[%clk 0:03:01]} 7. Qe2+ {[%clk 0:02:48]}  Be7 {[%clk 0:03:00]} 8. O-O {[%clk 0:02:48]}  O-O {[%clk 0:03:00]} 9. dxc5 {[%clk 0:02:48]}  Re8 {[%clk 0:02:57]} 10. Qd3 {[%clk 0:02:35]}  a6 {[%clk 0:02:54]} 11. Bxd7 {[%clk 0:02:35]}  Nbxd7 {[%clk 0:02:54]} 12. b4 {[%clk 0:02:21]}  a5 {[%clk 0:02:31]} 13. c3 {[%clk 0:02:21]}  Qc7 {[%clk 0:02:26]} 14. Nb3 {[%clk 0:02:14]}  axb4 {[%clk 0:02:15]} 15. cxb4 {[%clk 0:02:15]}  b6 {[%clk 0:02:16]} 16. Be3 {[%clk 0:01:54]}  bxc5 {[%clk 0:02:16]} 17. bxc5 {[%clk 0:01:54]}  Ra3 {[%clk 0:01:52]} 18. Rfc1 {[%clk 0:01:46]}  Ng4 {[%clk 0:01:37]} 19. c6 {[%clk 0:01:38]}  Nb6 {[%clk 0:01:28]} 20. Bxb6 {[%clk 0:01:19]}  Qxb6 {[%clk 0:01:28]} 21. Qd4 {[%clk 0:01:19]}  Qxd4 {[%clk 0:01:19]} 22. Nfxd4 {[%clk 0:01:19]}  Bf6 {[%clk 0:01:16]} 23. c7 {[%clk 0:01:13]}  Raa8 {[%clk 0:01:16]} 24. Rab1 {[%clk 0:01:07]}  Ne5 {[%clk 0:01:06]} 25. Nc5 {[%clk 0:00:43]}  Nc4 {[%clk 0:00:48]} 26. Nb5 {[%clk 0:00:43]}  Be5 {[%clk 0:00:32]} 27. Nd7 {[%clk 0:00:43]}  Bf4 {[%clk 0:00:26]} 28. Rc2 {[%clk 0:00:34]}  Rac8 {[%clk 0:00:20]} 29. g3 {[%clk 0:00:20]}  Bxc7 {[%clk 0:00:20]} 30. Nxc7 {[%clk 0:00:19]}  Rxc7 {[%clk 0:00:20]} 31. Nb6 {[%clk 0:00:20]}  Rb7 {[%clk 0:00:14]} 32. a4 {[%clk 0:00:10]}  Rxb6 {[%clk 0:00:13]} 33. Rd1 {[%clk 0:00:10]}  Rb2 {[%clk 0:00:05]} 34. Rxb2 {[%clk 0:00:08]}  Nxb2 {[%clk 0:00:06]} 35. Rxd5 {[%clk 0:00:07]}  Nxa4 {[%clk 0:00:06]} 36. h4 {[%clk 0:00:08]}  Nb6 {[%clk 0:00:06]} 37. Rd6 {[%clk 0:00:08]}  Nc8 {[%clk 0:00:06]} 38. Rd7 {[%clk 0:00:08]}  Ne7 {[%clk 0:00:06]} 39. Kg2 {[%clk 0:00:08]}  h5 {[%clk 0:00:07]} 40. Ra7 {[%clk 0:00:07]}  g6 {[%clk 0:00:06]} 41. Ra5 {[%clk 0:00:08]}  Nf5 {[%clk 0:00:07]} 42. Kf3 {[%clk 0:00:08]}  Rc8 {[%clk 0:00:07]} 43. Ra4 {[%clk 0:00:08]}  Rc3+ {[%clk 0:00:06]} 44. Kg2 {[%clk 0:00:07]}  Kg7 {[%clk 0:00:05]} 45. Ra6 {[%clk 0:00:07]}  Rc2 {[%clk 0:00:06]} 46. Ra4 {[%clk 0:00:06]}  Rb2 {[%clk 0:00:06]} 47. Kf3 {[%clk 0:00:06]}  Nd6 {[%clk 0:00:06]} 48. Ra6 {[%clk 0:00:06]}  Nc4 {[%clk 0:00:05]} 49. Ra4 {[%clk 0:00:04]}  Ne5+ {[%clk 0:00:05]} 50. Kg2 {[%clk 0:00:04]}  Nd3 {[%clk 0:00:06]} 0-1


[Site "https://www.chess.com"]

[Event "Titled Tuesday Blitz April 19 Late 2022"]
[White "Dobrov, Vladimir"]
[Black "Le Goff, Ronan"]
[WhiteFideId "4136594"]
[BlackFideId "612073"]
[WhiteElo "2575"]
[BlackElo "2276"]
[Result "1-0"]
[Round "01"]
[TimeControl "180+1"]
[Date "2022.04.19"]
[WhiteClock "0:01:53"]
[BlackClock "0:01:14"]

1. c4 {[%clk 0:02:55]}  Nf6 {[%clk 0:02:47]} 2. Nc3 {[%clk 0:02:55]}  e5 {[%clk 0:02:35]} 3. Nf3 {[%clk 0:02:53]}  Nc6 {[%clk 0:02:35]} 4. e4 {[%clk 0:02:53]}  Bc5 {[%clk 0:02:31]} 5. Nxe5 {[%clk 0:02:52]}  Nxe5 {[%clk 0:02:29]} 6. d4 {[%clk 0:02:52]}  Bb4 {[%clk 0:02:30]} 7. dxe5 {[%clk 0:02:51]}  Nxe4 {[%clk 0:02:28]} 8. Qd4 {[%clk 0:02:41]}  f5 {[%clk 0:02:20]} 9. exf6 {[%clk 0:02:31]}  O-O {[%clk 0:02:16]} 10. Bd3 {[%clk 0:02:18]}  d5 {[%clk 0:01:50]} 11. fxg7 {[%clk 0:02:06]}  Re8 {[%clk 0:01:43]} 12. O-O {[%clk 0:02:03]}  Nxc3 {[%clk 0:01:40]} 13. bxc3 {[%clk 0:02:03]}  c5 {[%clk 0:01:34]} 14. Bxh7+ {[%clk 0:02:00]}  Kxh7 {[%clk 0:01:28]} 15. Qd3+ {[%clk 0:02:00]}  Kxg7 {[%clk 0:01:28]} 16. cxb4 {[%clk 0:02:00]}  d4 {[%clk 0:01:18]} 17. bxc5 {[%clk 0:01:58]}  Qh4 {[%clk 0:01:15]} 18. Bb2 {[%clk 0:01:54]}  Rd8 {[%clk 0:01:14]} 19. Rad1 {[%clk 0:01:53]} 1-0


[Site "https://www.chess.com"]

[Event "Titled Tuesday Blitz April 19 Late 2022"]
[White "Wagner, Dinara"]
[Black "Grigorov, Grigor"]
[WhiteFideId "24157570"]
[BlackFideId "2907313"]
[WhiteElo "2216"]
[BlackElo "2510"]
[Result "0-1"]
[Round "01"]
[TimeControl "180+1"]
[Date "2022.04.19"]
[WhiteClock "0:00:09"]
[BlackClock "0:00:10"]

1. d4 {[%clk 0:02:58]}  Nf6 {[%clk 0:02:59]} 2. c4 {[%clk 0:02:57]}  e6 {[%clk 0:02:59]} 3. Nf3 {[%clk 0:02:58]}  b6 {[%clk 0:02:55]} 4. a3 {[%clk 0:02:57]}  Bb7 {[%clk 0:02:54]} 5. Nc3 {[%clk 0:02:58]}  Ne4 {[%clk 0:02:54]} 6. Nxe4 {[%clk 0:02:57]}  Bxe4 {[%clk 0:02:53]} 7. e3 {[%clk 0:02:58]}  d6 {[%clk 0:02:50]} 8. Bd3 {[%clk 0:02:58]}  Bxd3 {[%clk 0:02:44]} 9. Qxd3 {[%clk 0:02:59]}  Nd7 {[%clk 0:02:43]} 10. O-O {[%clk 0:02:59]}  Be7 {[%clk 0:02:43]} 11. e4 {[%clk 0:02:46]}  O-O {[%clk 0:02:43]} 12. Bf4 {[%clk 0:02:45]}  a5 {[%clk 0:02:43]} 13. b3 {[%clk 0:02:44]}  Qc8 {[%clk 0:02:43]} 14. Rad1 {[%clk 0:02:43]}  Qb7 {[%clk 0:02:43]} 15. Rfe1 {[%clk 0:02:43]}  Rfe8 {[%clk 0:02:43]} 16. h3 {[%clk 0:02:42]}  Nf8 {[%clk 0:02:42]} 17. Bg3 {[%clk 0:02:42]}  Ng6 {[%clk 0:02:42]} 18. Qc3 {[%clk 0:02:38]}  Bf6 {[%clk 0:02:31]} 19. Qc2 {[%clk 0:02:37]}  Be7 {[%clk 0:02:14]} 20. Qc3 {[%clk 0:02:36]}  h6 {[%clk 0:02:05]} 21. Qc2 {[%clk 0:02:36]}  Red8 {[%clk 0:02:01]} 22. Qb2 {[%clk 0:02:34]}  b5 {[%clk 0:02:00]} 23. Qc2 {[%clk 0:02:33]}  bxc4 {[%clk 0:01:39]} 24. bxc4 {[%clk 0:02:34]}  a4 {[%clk 0:01:34]} 25. Rb1 {[%clk 0:02:34]}  Qc6 {[%clk 0:01:33]} 26. d5 {[%clk 0:02:02]}  exd5 {[%clk 0:01:09]} 27. exd5 {[%clk 0:02:02]}  Qd7 {[%clk 0:01:10]} 28. Nd4 {[%clk 0:02:00]}  Bf6 {[%clk 0:01:10]} 29. Nc6 {[%clk 0:01:58]}  Re8 {[%clk 0:01:10]} 30. Red1 {[%clk 0:01:33]}  Ne7 {[%clk 0:01:04]} 31. Nxe7+ {[%clk 0:00:58]}  Rxe7 {[%clk 0:01:04]} 32. Re1 {[%clk 0:00:58]}  Rxe1+ {[%clk 0:00:59]} 33. Rxe1 {[%clk 0:00:58]}  Rb8 {[%clk 0:00:55]} 34. c5 {[%clk 0:00:49]}  dxc5 {[%clk 0:00:50]} 35. Qxc5 {[%clk 0:00:49]}  Rb5 {[%clk 0:00:47]} 36. Qxc7 {[%clk 0:00:38]}  Qxc7 {[%clk 0:00:43]} 37. Bxc7 {[%clk 0:00:39]}  Rxd5 {[%clk 0:00:43]} 38. Re4 {[%clk 0:00:39]}  Rd1+ {[%clk 0:00:36]} 39. Kh2 {[%clk 0:00:39]}  Bd4 {[%clk 0:00:37]} 40. f3 {[%clk 0:00:30]}  Rd3 {[%clk 0:00:29]} 41. Kg3 {[%clk 0:00:25]}  f5 {[%clk 0:00:26]} 42. Re8+ {[%clk 0:00:24]}  Kf7 {[%clk 0:00:26]} 43. Rd8 {[%clk 0:00:21]}  Be5+ {[%clk 0:00:21]} 44. Kf2 {[%clk 0:00:21]}  Rxd8 {[%clk 0:00:21]} 45. Bxd8 {[%clk 0:00:21]}  Bd6 {[%clk 0:00:22]} 46. Ke3 {[%clk 0:00:19]}  Bxa3 {[%clk 0:00:21]} 47. Kd3 {[%clk 0:00:20]}  Ke6 {[%clk 0:00:20]} 48. Kc4 {[%clk 0:00:20]}  Bd6 {[%clk 0:00:18]} 49. Ba5 {[%clk 0:00:19]}  a3 {[%clk 0:00:17]} 50. Kb3 {[%clk 0:00:19]}  Kd5 {[%clk 0:00:16]} 51. Bc3 {[%clk 0:00:19]}  Be5 {[%clk 0:00:15]} 52. Be1 {[%clk 0:00:16]}  Bb2 {[%clk 0:00:14]} 53. Bf2 {[%clk 0:00:16]}  g6 {[%clk 0:00:13]} 54. Be3 {[%clk 0:00:16]}  h5 {[%clk 0:00:13]} 55. Bf2 {[%clk 0:00:16]}  Bd4 {[%clk 0:00:12]} 56. Be1 {[%clk 0:00:16]}  Bc5 {[%clk 0:00:13]} 57. Bc3 {[%clk 0:00:15]}  Bd6 {[%clk 0:00:13]} 58. Be1 {[%clk 0:00:15]}  Kd4 {[%clk 0:00:12]} 59. g4 {[%clk 0:00:13]}  Ke3 {[%clk 0:00:12]} 60. gxh5 {[%clk 0:00:12]}  gxh5 {[%clk 0:00:12]} 61. Bc3 {[%clk 0:00:10]}  Kxf3 {[%clk 0:00:11]} 62. Kc4 {[%clk 0:00:10]}  Ke4 {[%clk 0:00:10]} 63. Kb5 {[%clk 0:00:09]}  Be5 {[%clk 0:00:10]} 0-1


[Site "https://www.chess.com"]

[Event "Titled Tuesday Blitz April 19 Late 2022"]
[White "Fedoseev, Vladimir"]
[Black "Martinez Reyes, Pedro Ramon"]
[WhiteFideId "24130737"]
[BlackFideId "3901807"]
[WhiteElo "2726"]
[BlackElo "2410"]
[Result "1-0"]
[Round "01"]
[TimeControl "180+1"]
[Date "2022.04.19"]
[WhiteClock "0:00:30"]
[BlackClock "0:00:03"]

1. e4 {[%clk 0:02:59]}  e6 {[%clk 0:02:58]} 2. d4 {[%clk 0:02:59]}  d5 {[%clk 0:02:59]} 3. Nd2 {[%clk 0:02:58]}  Nf6 {[%clk 0:02:59]} 4. e5 {[%clk 0:02:57]}  Ne4 {[%clk 0:02:59]} 5. Nxe4 {[%clk 0:02:50]}  dxe4 {[%clk 0:03:00]} 6. Be3 {[%clk 0:02:50]}  c5 {[%clk 0:02:57]} 7. dxc5 {[%clk 0:02:45]}  Nd7 {[%clk 0:02:54]} 8. b4 {[%clk 0:02:39]}  Qc7 {[%clk 0:02:43]} 9. Bb5 {[%clk 0:02:37]}  b6 {[%clk 0:02:33]} 10. Qd4 {[%clk 0:02:14]}  bxc5 {[%clk 0:02:30]} 11. Qxe4 {[%clk 0:02:11]}  Rb8 {[%clk 0:02:15]} 12. Qc4 {[%clk 0:01:56]}  a6 {[%clk 0:02:06]} 13. Bxd7+ {[%clk 0:01:47]}  Bxd7 {[%clk 0:02:07]} 14. Nf3 {[%clk 0:01:47]}  Rxb4 {[%clk 0:02:01]} 15. Qxa6 {[%clk 0:01:47]}  Be7 {[%clk 0:01:31]} 16. O-O {[%clk 0:01:46]}  O-O {[%clk 0:01:31]} 17. Rfb1 {[%clk 0:01:44]}  Bb5 {[%clk 0:01:16]} 18. Qa3 {[%clk 0:01:39]}  Bc6 {[%clk 0:01:06]} 19. Qc3 {[%clk 0:01:38]}  Qb7 {[%clk 0:00:51]} 20. Nd2 {[%clk 0:01:11]}  Bxg2 {[%clk 0:00:47]} 21. Bxc5 {[%clk 0:01:11]}  Bxc5 {[%clk 0:00:36]} 22. Qxc5 {[%clk 0:01:11]}  Bh3 {[%clk 0:00:35]} 23. f3 {[%clk 0:01:03]}  Rg4+ {[%clk 0:00:20]} 24. Kf2 {[%clk 0:01:02]}  Rg2+ {[%clk 0:00:20]} 25. Ke3 {[%clk 0:01:03]}  Qd7 {[%clk 0:00:17]} 26. Ne4 {[%clk 0:01:01]}  Qa4 {[%clk 0:00:12]} 27. Rb4 {[%clk 0:00:47]}  Qa3+ {[%clk 0:00:10]} 28. Rb3 {[%clk 0:00:40]}  Qxc5+ {[%clk 0:00:10]} 29. Nxc5 {[%clk 0:00:41]}  Rxc2 {[%clk 0:00:10]} 30. Nd7 {[%clk 0:00:35]}  Ra8 {[%clk 0:00:11]} 31. a4 {[%clk 0:00:34]}  h5 {[%clk 0:00:08]} 32. a5 {[%clk 0:00:33]}  Rc7 {[%clk 0:00:08]} 33. Rb8+ {[%clk 0:00:31]}  Rxb8 {[%clk 0:00:06]} 34. Nxb8 {[%clk 0:00:32]}  Rc3+ {[%clk 0:00:05]} 35. Kd4 {[%clk 0:00:31]}  Rb3 {[%clk 0:00:06]} 36. Nc6 {[%clk 0:00:30]}  Rxf3 {[%clk 0:00:06]} 37. a6 {[%clk 0:00:30]}  Bg2 {[%clk 0:00:06]} 38. a7 {[%clk 0:00:29]}  Rf4+ {[%clk 0:00:05]} 39. Kc5 {[%clk 0:00:29]}  Bxc6 {[%clk 0:00:02]} 40. Kxc6 {[%clk 0:00:29]}  Rc4+ {[%clk 0:00:02]} 41. Kd7 {[%clk 0:00:29]}  Rd4+ {[%clk 0:00:03]} 42. Ke7 {[%clk 0:00:30]} 1-0


[Site "https://www.chess.com"]

[Event "Titled Tuesday Blitz April 19 Late 2022"]
[White "Ferreira, Vitor Hugo Vieira"]
[Black "Bacrot, Etienne"]
[WhiteFideId "2119765"]
[BlackFideId "605506"]
[WhiteElo "2165"]
[BlackElo "2673"]
[Result "0-1"]
[Round "01"]
[TimeControl "180+1"]
[Date "2022.04.19"]
[WhiteClock "0:01:00"]
[BlackClock "0:01:24"]

1. d4 {[%clk 0:03:00]}  c5 {[%clk 0:03:00]} 2. d5 {[%clk 0:02:58]}  Nf6 {[%clk 0:03:00]} 3. Nc3 {[%clk 0:02:49]}  g6 {[%clk 0:02:59]} 4. e4 {[%clk 0:02:49]}  d6 {[%clk 0:02:59]} 5. Nf3 {[%clk 0:02:49]}  Bg7 {[%clk 0:02:59]} 6. Be2 {[%clk 0:02:49]}  O-O {[%clk 0:03:00]} 7. O-O {[%clk 0:02:49]}  Na6 {[%clk 0:02:59]} 8. Bf4 {[%clk 0:02:47]}  Nc7 {[%clk 0:02:59]} 9. a4 {[%clk 0:02:45]}  a6 {[%clk 0:02:58]} 10. h3 {[%clk 0:02:42]}  Rb8 {[%clk 0:02:58]} 11. a5 {[%clk 0:02:42]}  Nd7 {[%clk 0:02:56]} 12. Nd2 {[%clk 0:02:38]}  b5 {[%clk 0:02:56]} 13. axb6 {[%clk 0:02:38]}  Nxb6 {[%clk 0:02:56]} 14. Ra2 {[%clk 0:02:28]}  Nb5 {[%clk 0:02:50]} 15. Nxb5 {[%clk 0:02:24]}  axb5 {[%clk 0:02:51]} 16. b3 {[%clk 0:02:17]}  Bd7 {[%clk 0:02:47]} 17. Bg4 {[%clk 0:02:07]}  f5 {[%clk 0:02:43]} 18. exf5 {[%clk 0:02:06]}  Bxf5 {[%clk 0:02:43]} 19. Bf3 {[%clk 0:02:02]}  Bxh3 {[%clk 0:02:37]} 20. Bg5 {[%clk 0:01:58]}  Bd7 {[%clk 0:02:35]} 21. Qe2 {[%clk 0:01:58]}  Rf7 {[%clk 0:02:36]} 22. c4 {[%clk 0:01:54]}  bxc4 {[%clk 0:02:32]} 23. Nxc4 {[%clk 0:01:54]}  Nxc4 {[%clk 0:02:32]} 24. bxc4 {[%clk 0:01:53]}  Be5 {[%clk 0:02:21]} 25. Ra7 {[%clk 0:01:48]}  Ra8 {[%clk 0:02:16]} 26. Rxd7 {[%clk 0:01:45]}  Qxd7 {[%clk 0:02:14]} 27. Bg4 {[%clk 0:01:45]}  Ra2 {[%clk 0:01:33]} 28. Bxd7 {[%clk 0:01:37]}  Rxe2 {[%clk 0:01:32]} 29. Be6 {[%clk 0:01:38]}  Kg7 {[%clk 0:01:31]} 30. Bxf7 {[%clk 0:01:38]}  Kxf7 {[%clk 0:01:32]} 31. f4 {[%clk 0:01:37]}  Bf6 {[%clk 0:01:31]} 32. Bxf6 {[%clk 0:01:24]}  Kxf6 {[%clk 0:01:32]} 33. Rf3 {[%clk 0:01:13]}  Re4 {[%clk 0:01:30]} 34. Rh3 {[%clk 0:01:10]}  h5 {[%clk 0:01:30]} 35. Rc3 {[%clk 0:01:09]}  Rxf4 {[%clk 0:01:30]} 36. Kh2 {[%clk 0:01:09]}  Rg4 {[%clk 0:01:30]} 37. Kh3 {[%clk 0:01:09]}  Re4 {[%clk 0:01:28]} 38. g3 {[%clk 0:01:10]}  Ke5 {[%clk 0:01:28]} 39. Rf3 {[%clk 0:01:07]}  Kd4 {[%clk 0:01:28]} 40. Rf7 {[%clk 0:01:06]}  Kxc4 {[%clk 0:01:25]} 41. Rg7 {[%clk 0:01:06]}  Kxd5 {[%clk 0:01:24]} 42. Rxg6 {[%clk 0:01:07]}  Re5 {[%clk 0:01:25]} 43. Rg8 {[%clk 0:01:03]}  c4 {[%clk 0:01:25]} 44. Rc8 {[%clk 0:01:04]}  Kd4 {[%clk 0:01:25]} 45. Kh4 {[%clk 0:01:02]}  c3 {[%clk 0:01:24]} 46. Rxc3 {[%clk 0:01:00]}  Kxc3 {[%clk 0:01:24]} 0-1


[Site "https://www.chess.com"]